Workbook

Sheet QuickBooks Desktop Export Tips

Sheet Sheet1
G1: Jan 25 | I1: Feb 25 | K1: Mar 25 | M1: Apr 25 | O1: May 25 | Q1: Jun 25 | S1: Jul 25 | U1: Aug 25 | W1: Sep 25 | Y1: Oct 25 | AA1: Nov 25 | AC1: Dec 25 | AE1: TOTAL
B2: Ordinary Income/Expense
D3: Income
E4: 41000 · Rental Income
F5: 41100 · Apartment Rental | G5: 21600 | I5: 22803 | K5: 23600 | M5: 23600 | O5: 23600 | Q5: 24725 | S5: 24000 | U5: 22550 | W5: 22550 | Y5: 21200 | AA5: 21200 | AC5: 17500 | AE5: =ROUND(SUM(G5:AC5),5) -> 268928
F6: 41200 · Hotel Rental | G6: 5835 | I6: 7635 | K6: 10445 | M6: 20330 | O6: 4490 | Q6: 10955 | S6: 21235 | U6: 28341.5 | W6: 26409.5 | Y6: 25560 | AA6: 14275 | AC6: 14015 | AE6: 189526
F7: 41300 · Commercial Rental | G7: 10750 | I7: 10750 | K7: 10750 | M7: 7750 | O7: 8750 | Q7: 7750 | S7: 8750 | U7: 8750 | W7: 7750 | Y7: 10750 | AA7: 10750 | AC7: 10750 | AE7: 114000
E8: Total 41000 · Rental Income | G8: =ROUND(SUM(G4:G7),5) -> 38185 | I8: =ROUND(SUM(I4:I7),5) -> 41188 | K8: =ROUND(SUM(K4:K7),5) -> 44795 | M8: =ROUND(SUM(M4:M7),5) -> 51680 | O8: =ROUND(SUM(O4:O7),5) -> 36840 | Q8: =ROUND(SUM(Q4:Q7),5) -> 43430 | S8: =ROUND(SUM(S4:S7),5) -> 53985 | U8: =ROUND(SUM(U4:U7),5) -> 59641.5 | W8: =ROUND(SUM(W4:W7),5) -> 56709.5 | Y8: =ROUND(SUM(Y4:Y7),5) -> 57510 | AA8: =ROUND(SUM(AA4:AA7),5) -> 46225 | AC8: =ROUND(SUM(AC4:AC7),5) -> 42265 | AE8: 572454
E9: 42000 · Sales Tax Discount | G9: 27.52 | I9: 9.34 | K9: 12.22 | M9: 16.71 | O9: 32.53 | Q9: 7.19 | S9: 14.14 | U9: 16.02 | W9: 15.34 | Y9: 29.59 | AA9: 32.45 | AC9: 0 | AE9: 213.05
D10: Total Income | G10: =ROUND(G3+SUM(G8:G9),5) -> 38212.52 | I10: =ROUND(I3+SUM(I8:I9),5) -> 41197.34 | K10: =ROUND(K3+SUM(K8:K9),5) -> 44807.22 | M10: =ROUND(M3+SUM(M8:M9),5) -> 51696.71 | O10: =ROUND(O3+SUM(O8:O9),5) -> 36872.53 | Q10: =ROUND(Q3+SUM(Q8:Q9),5) -> 43437.19 | S10: =ROUND(S3+SUM(S8:S9),5) -> 53999.14 | U10: =ROUND(U3+SUM(U8:U9),5) -> 59657.52 | W10: =ROUND(W3+SUM(W8:W9),5) -> 56724.84 | Y10: =ROUND(Y3+SUM(Y8:Y9),5) -> 57539.59 | AA10: =ROUND(AA3+SUM(AA8:AA9),5) -> 46257.45 | AC10: =ROUND(AC3+SUM(AC8:AC9),5) -> 42265 | AE10: 572667.05
C11: Gross Profit | G11: =G10 -> 38212.52 | I11: =I10 -> 41197.34 | K11: =K10 -> 44807.22 | M11: =M10 -> 51696.71 | O11: =O10 -> 36872.53 | Q11: =Q10 -> 43437.19 | S11: =S10 -> 53999.14 | U11: =U10 -> 59657.52 | W11: =W10 -> 56724.84 | Y11: =Y10 -> 57539.59 | AA11: =AA10 -> 46257.45 | AC11: =AC10 -> 42265 | AE11: 572667.05
D12: Expense
E13: 62000 · Bank Charges | G13: 36 | I13: 10 | K13: 0 | M13: 0 | O13: 0 | Q13: 0 | S13: 36 | U13: 0 | W13: 0 | Y13: 0 | AA13: 0 | AC13: 0 | AE13: =ROUND(SUM(G13:AC13),5) -> 82
E14: 63000 · Reservation Clerk | G14: 0 | I14: 0 | K14: 3750 | M14: 0 | O14: 0 | Q14: 3750 | S14: 0 | U14: 0 | W14: 3750 | Y14: 0 | AA14: 0 | AC14: 3750 | AE14: 15000
E15: 63300 · Insurance Expense | G15: 2074.75 | I15: 2074.75 | K15: 4032.25 | M15: 8181.75 | O15: 2682.25 | Q15: 5364.5 | S15: 2682.25 | U15: 0 | W15: 5364.5 | Y15: 0 | AA15: 2682.25 | AC15: 5364.5 | AE15: 40503.75
E16: 63700 · Grounds and Maintenance | G16: 0 | I16: 0 | K16: 0 | M16: 358.88 | O16: 0 | Q16: 0 | S16: 0 | U16: 0 | W16: 118.71 | Y16: 0 | AA16: 125.63 | AC16: 0 | AE16: 603.22
E17: 66250 · License and Permits | G17: 0 | I17: 0 | K17: 0 | M17: 0 | O17: 254 | Q17: 0 | S17: 0 | U17: 0 | W17: 33 | Y17: 0 | AA17: 0 | AC17: 0 | AE17: 287
E18: 66500 · Postage and Delivery | G18: 0 | I18: 0 | K18: 0 | M18: 64.6 | O18: 0 | Q18: 0 | S18: 0 | U18: 0 | W18: 0 | Y18: 68.6 | AA18: 0 | AC18: 0 | AE18: 133.2
E19: 66600 · Audit and Tax Fees | G19: 0 | I19: 0 | K19: 0 | M19: 0 | O19: 53.14 | Q19: 0 | S19: 0 | U19: 0 | W19: 0 | Y19: 0 | AA19: 0 | AC19: 339.97 | AE19: 393.11
E20: 66700 · Professional Fees | G20: 1093.2 | I20: 424.47 | K20: 977.15 | M20: 705.78 | O20: 1658.71 | Q20: 306.97 | S20: 666.87 | U20: 1728.1 | W20: 1287.47 | Y20: 1628.09 | AA20: 1564.09 | AC20: 1235.64 | AE20: 13276.54
E21: 66750 · Dues and Subscriptions | G21: 348 | I21: 0 | K21: 0 | M21: 0 | O21: 0 | Q21: 0 | S21: 187.03 | U21: 2448 | W21: 0 | Y21: 0 | AA21: 0 | AC21: 204 | AE21: 3187.03
E22: 67000 · Security Monitoring | G22: 1061.32 | I22: 40 | K22: 0 | M22: 144.45 | O22: 138.57 | Q22: 90.45 | S22: 144.45 | U22: 0 | W22: 0 | Y22: 144.45 | AA22: 101.65 | AC22: 642 | AE22: 2507.34
E23: 67100 · Rent Expense | G23: 500 | I23: 500 | K23: 500 | M23: 500 | O23: 500 | Q23: 500 | S23: 0 | U23: 1000 | W23: 500 | Y23: 500 | AA23: 500 | AC23: 500 | AE23: 6000
E24: 67150 · Housekeeping | G24: 1480 | I24: 0 | K24: 0 | M24: 1570 | O24: 0 | Q24: 1520 | S24: 1100 | U24: 0 | W24: 1520 | Y24: 0 | AA24: 1530 | AC24: 1530 | AE24: 10250
E25: 67155 · Room Supplies | G25: 957.68 | I25: 8.52 | K25: 326.13 | M25: 247.92 | O25: 523.3 | Q25: 55.61 | S25: 187.91 | U25: 224.64 | W25: 329.06 | Y25: 106.99 | AA25: 153.1 | AC25: 7.33 | AE25: 3128.19
E26: 67175 · Linens | G26: 0 | I26: 0 | K26: 0 | M26: 320.97 | O26: 0 | Q26: 0 | S26: 0 | U26: 0 | W26: 0 | Y26: 0 | AA26: 0 | AC26: 0 | AE26: 320.97
E27: 67200 · Repairs and Maintenance | G27: 1012.58 | I27: 1431.6 | K27: 631.17 | M27: 767.5 | O27: 2519.52 | Q27: 647.59 | S27: 1074.79 | U27: 1030.82 | W27: 393.04 | Y27: 1129.63 | AA27: 1485.32 | AC27: 1452.55 | AE27: 13576.11
E28: 68100 · Telephone Expense-Answering Ser | G28: 117.7 | I28: 117.7 | K28: 117.7 | M28: 117.7 | O28: 117.7 | Q28: 117.7 | S28: 117.7 | U28: 117.7 | W28: 0 | Y28: 0 | AA28: 235.4 | AC28: 0 | AE28: 1177
E29: 68600 · Utilities | G29: 5121.51 | I29: 5695.87 | K29: 7928.56 | M29: 4340.55 | O29: 5223.36 | Q29: 5352.69 | S29: 6405.41 | U29: 7581.55 | W29: 6888.85 | Y29: 5244.77 | AA29: 3794.08 | AC29: 4104.04 | AE29: 67681.24
E30: 70000 · Property Taxes | G30: 0 | I30: 0 | K30: 0 | M30: 0 | O30: 0 | Q30: 0 | S30: 0 | U30: 0 | W30: 0 | Y30: 0 | AA30: 0 | AC30: 43072.65 | AE30: 43072.65
D31: Total Expense | G31: =ROUND(SUM(G12:G30),5) -> 13802.74 | I31: =ROUND(SUM(I12:I30),5) -> 10302.91 | K31: =ROUND(SUM(K12:K30),5) -> 18262.96 | M31: =ROUND(SUM(M12:M30),5) -> 17320.1 | O31: =ROUND(SUM(O12:O30),5) -> 13670.55 | Q31: =ROUND(SUM(Q12:Q30),5) -> 17705.51 | S31: =ROUND(SUM(S12:S30),5) -> 12602.41 | U31: =ROUND(SUM(U12:U30),5) -> 14130.81 | W31: =ROUND(SUM(W12:W30),5) -> 20184.63 | Y31: =ROUND(SUM(Y12:Y30),5) -> 8822.53 | AA31: =ROUND(SUM(AA12:AA30),5) -> 12171.52 | AC31: =ROUND(SUM(AC12:AC30),5) -> 62202.68 | AE31: 221179.35
B32: Net Ordinary Income | G32: =ROUND(G2+G11-G31,5) -> 24409.78 | I32: =ROUND(I2+I11-I31,5) -> 30894.43 | K32: =ROUND(K2+K11-K31,5) -> 26544.26 | M32: =ROUND(M2+M11-M31,5) -> 34376.61 | O32: =ROUND(O2+O11-O31,5) -> 23201.98 | Q32: =ROUND(Q2+Q11-Q31,5) -> 25731.68 | S32: =ROUND(S2+S11-S31,5) -> 41396.73 | U32: =ROUND(U2+U11-U31,5) -> 45526.71 | W32: =ROUND(W2+W11-W31,5) -> 36540.21 | Y32: =ROUND(Y2+Y11-Y31,5) -> 48717.06 | AA32: =ROUND(AA2+AA11-AA31,5) -> 34085.93 | AC32: =ROUND(AC2+AC11-AC31,5) -> -19937.68 | AE32: 351487.7
A33: Net Income | G33: =G32 -> 24409.78 | I33: =I32 -> 30894.43 | K33: =K32 -> 26544.26 | M33: =M32 -> 34376.61 | O33: =O32 -> 23201.98 | Q33: =Q32 -> 25731.68 | S33: =S32 -> 41396.73 | U33: =U32 -> 45526.71 | W33: =W32 -> 36540.21 | Y33: =Y32 -> 48717.06 | AA33: =AA32 -> 34085.93 | AC33: =AC32 -> -19937.68 | AE33: 351487.7
